lending/lending_fUSD_20241229
["ID","MTS","AMOUNT","RATE_DAILY","PERIOD"]
[347053458,1735485052828,-500.0,0.00011818,2]
[347053459,1735485052839,-500.0,0.00011818,2]
[347053462,1735485052849,-500.0,0.00011818,2]
[347053463,1735485052858,-500.0,0.00011818,2]
[347053465,1735485052867,-500.0,0.00011818,2]
[347053467,1735485052876,-500.0,0.00011818,2]
[347053469,1735485052885,-2329.98,0.00011818,2]
[347053471,1735485052894,-2237.76,0.00011818,2]
[347053474,1735485052904,-500.0,0.00011818,2]
[347053476,1735485052914,-500.0,0.00011818,2]
[347053478,1735485052923,-500.0,0.00011818,2]
[347053479,1735485052933,-500.0,0.00011818,2]
[347053482,1735485052943,-500.0,0.00011818,2]
[347053484,1735485052953,-500.0,0.00011818,2]
[347053486,1735485052964,-500.0,0.00011818,2]
[347053488,1735485052974,-500.0,0.00011818,2]
[347053490,1735485052984,-500.0,0.00011818,2]
[347053492,1735485052993,-500.0,0.00011818,2]
[347053494,1735485053003,-500.0,0.00011818,2]
[347053496,1735485053012,-500.0,0.00011818,2]
[347053497,1735485053022,-500.0,0.00011818,2]
[347053499,1735485053032,-504.61052577,0.00011818,2]
[347053501,1735485053042,-500.0,0.00011818,2]
[347053503,1735485053053,-500.0,0.00011818,2]
[347053505,1735485053063,-500.0,0.00011818,2]
[347053507,1735485053074,-500.0,0.00011818,2]
[347053510,1735485053085,-1475.43,0.00011818,2]
[347053512,1735485053096,-500.0,0.00011818,2]
[347053514,1735485053108,-500.0,0.00011818,2]
[347053516,1735485053118,-1132.44,0.00011818,2]
[347053517,1735485053128,-3671.17,0.00011818,2]
[347053519,1735485053138,-1317.07,0.00011818,2]
[347053521,1735485053147,-2372.66,0.00011818,2]
[347053523,1735485053157,-500.0,0.00011818,2]
[347053525,1735485053166,-500.0,0.00011818,2]
[347053527,1735485053175,-554.27,0.00011818,2]
[347053529,1735485053184,-500.0,0.00011818,2]
[347053531,1735485053193,-691.04,0.00011818,2]
[347053533,1735485053204,-1304.68,0.00011818,2]
[347053535,1735485053213,-6548.67,0.00011818,2]
[347053536,1735485053223,-3288.63,0.00011818,2]
[347053537,1735485053232,-500.0,0.00011818,2]
[347053538,1735485053241,-500.0,0.00011818,2]
[347053539,1735485053250,-1098.1,0.00011818,2]
[347053540,1735485053259,-430.53798321,0.00011818,2]
[347053541,1735485053269,-500.0,0.00011818,2]
[347053542,1735485053278,-2041.27,0.00011818,2]
[347053543,1735485053287,-3739.98,0.00011818,2]
[347053545,1735485053296,-500.0,0.00011818,2]
[347053547,1735485053305,-1345.53,0.00011818,2]
[347053549,1735485053314,-2376.13,0.00011818,2]
[347053551,1735485053323,-702.9,0.00011818,2]
[347053553,1735485053332,-1787.56,0.00011818,2]
[347053555,1735485053341,-1177.87,0.00011818,2]
[347053557,1735485053350,-6078.87,0.00011818,2]
[347053559,1735485053359,-500.0,0.00011818,2]
[347053561,1735485053368,-609.47,0.00011818,2]
[347053563,1735485053377,-500.0,0.00011818,2]
[347053565,1735485053386,-1176.36,0.00011818,2]
[347053567,1735485053395,-540.53,0.00011818,2]
[347053569,1735485053405,-6957.44,0.00011818,2]
[347053571,1735485053414,-500.0,0.00011818,2]
[347053573,1735485053423,-500.0,0.00011818,2]
[347053575,1735485053432,-1391.04,0.00011818,2]
[347053577,1735485053442,-500.0,0.00011818,2]
[347053579,1735485053451,-500.0,0.00011818,2]
[347053581,1735485053460,-1196.12,0.00011818,2]
[347053583,1735485053469,-500.0,0.00011818,2]
[347053585,1735485053478,-500.0,0.00011818,2]
[347053587,1735485053487,-2588.62,0.00011818,2]
[347053589,1735485053496,-500.0,0.00011818,2]
[347053591,1735485053505,-500.0,0.00011818,2]
[347053593,1735485053514,-500.0,0.00011818,2]
[347053595,1735485053523,-694.64,0.00011818,2]
[347053597,1735485053532,-500.0,0.00011818,2]
[347053599,1735485053541,-2288.71,0.00011818,2]
[347053601,1735485053550,-500.0,0.00011818,2]
[347053603,1735485053559,-500.0,0.00011818,2]
[347053605,1735485053568,-493.06495457,0.00011818,2]
[347053607,1735485053577,-998.23,0.00011818,2]
[347053609,1735485053586,-500.0,0.00011818,2]
[347053611,1735485053595,-567.03,0.00011818,2]
[347053613,1735485053604,-633.32,0.00011818,2]
[347053615,1735485053613,-814.61,0.00011818,2]
[347053617,1735485053622,-449.99394256,0.00011818,2]
[347053619,1735485053631,-3064.48,0.00011818,2]
[347053621,1735485053640,-500.0,0.00011818,2]
[347053623,1735485053649,-1904.07,0.00011818,2]
[347053625,1735485053658,-1932.25,0.00011818,2]
[347053627,1735485053667,-500.0,0.00011818,2]
[347053629,1735485053676,-500.0,0.00011818,2]
[347053631,1735485053685,-500.0,0.00011818,2]
[347053633,1735485053694,-500.0,0.00011818,2]
[347053635,1735485053703,-1194.6,0.00011818,2]
[347053637,1735485053713,-1763.61,0.00011818,2]
[347053638,1735485053722,-500.0,0.00011818,2]
[347053640,1735485053731,-15864.74,0.00011818,2]
[347053642,1735485053740,-500.0,0.00011818,2]
[347053644,1735485053749,-548.94,0.00011818,2]
[347053646,1735485053758,-500.0,0.00011818,2]
[347053648,1735485053767,-500.0,0.00011818,2]
[347053650,1735485053776,-500.0,0.00011818,2]
[347053652,1735485053786,-5104.19,0.00011818,2]
[347053654,1735485053796,-500.0,0.00011818,2]
[347053656,1735485053807,-500.0,0.00011818,2]
[347053658,1735485053816,-500.0,0.00011818,2]
[347053660,1735485053826,-500.0,0.00011818,2]
[347053662,1735485053835,-500.0,0.00011818,2]
[347053664,1735485053844,-1714.66,0.00011818,2]
[347053666,1735485053854,-500.0,0.00011818,2]
[347053668,1735485053863,-500.0,0.00011818,2]
[347053670,1735485053873,-1024.61,0.00011818,2]
[347053672,1735485053882,-2305.71,0.00011818,2]
[347053674,1735485053891,-4202.27,0.00011818,2]
[347053676,1735485053901,-3298.16,0.00011818,2]
[347053678,1735485053910,-564.94,0.00011818,2]
[347053680,1735485053919,-500.0,0.00011818,2]
[347053682,1735485053928,-12814.68,0.00011818,2]
[347053684,1735485053937,-258.76054866,0.00011818,2]
[347053686,1735485053946,-500.0,0.00011818,2]
[347053688,1735485053956,-500.0,0.00011818,2]
[347053690,1735485053966,-2940.12,0.00011818,2]
[347053692,1735485053975,-500.0,0.00011818,2]
[347053694,1735485053985,-500.0,0.00011818,2]
[347053696,1735485053994,-500.0,0.00011818,2]
[347053698,1735485054003,-500.0,0.00011818,2]
[347053700,1735485054013,-500.0,0.00011818,2]
[347053702,1735485054023,-500.0,0.00011818,2]
[347053704,1735485054032,-500.0,0.00011818,2]
[347053706,1735485054041,-1778.84,0.00011818,2]
[347053708,1735485054051,-3139.28,0.00011818,2]
[347053710,1735485054060,-500.0,0.00011818,2]
[347053712,1735485054069,-1109.08,0.00011818,2]
[347053714,1735485054078,-500.0,0.00011818,2]
[347053716,1735485054087,-2662.33,0.00011818,2]
[347053718,1735485054096,-500.0,0.00011818,2]
[347053720,1735485054105,-2315.98,0.00011818,2]
[347053722,1735485054116,-500.0,0.00011818,2]
[347053724,1735485054125,-512.12870214,0.00011818,2]
[347053726,1735485054134,-500.0,0.00011818,2]
[347053728,1735485054143,-500.0,0.00011818,2]
[347053730,1735485054152,-2146.03,0.00011818,2]
[347053732,1735485054161,-2496.28,0.00011818,2]
[347053733,1735485054170,-500.0,0.00011818,2]
[347053735,1735485054179,-222.02881883,0.00011818,2]
[347053737,1735485054188,-668.25,0.00011818,2]
[347053740,1735485054203,-500.0,0.00011818,2]
[347053742,1735485054214,-2029.35,0.00011818,2]
[347053744,1735485054223,-787.48,0.00011818,2]
[347053746,1735485054233,-1134.67,0.00011818,2]
[347053748,1735485054242,-246.71,0.00011818,2]
[347053750,1735485054251,-577.62,0.00011818,2]
[347053752,1735485054262,-500.0,0.00011819,2]
[347053754,1735485054271,-500.0,0.00011819,2]
[347053756,1735485054280,-500.0,0.00011819,2]
[347053758,1735485054289,-500.0,0.00011819,2]
[347053760,1735485054300,-500.0,0.00011819,2]
[347053762,1735485054309,-500.0,0.00011819,2]
[347053764,1735485054318,-500.0,0.00011819,2]
[347053766,1735485054327,-645.64,0.00011819,2]
[347053768,1735485054336,-500.0,0.00011819,2]
[347053770,1735485054345,-502.82529769,0.00011819,2]
[347053772,1735485054354,-500.0,0.00011819,2]
[347053774,1735485054363,-500.0,0.00011819,2]
[347053775,1735485054372,-500.0,0.00011819,2]
[347053777,1735485054381,-1322.41,0.00011819,2]
[347053779,1735485054390,-500.0,0.00011819,2]
[347053781,1735485054399,-500.0,0.00011819,2]
[347053783,1735485054409,-667.73,0.00011819,2]
[347053785,1735485054417,-500.0,0.00011819,2]
[347053787,1735485054426,-500.0,0.00011819,2]
[347053789,1735485054435,-500.0,0.00011819,2]
[347053791,1735485054444,-500.0,0.00011819,2]
[347053793,1735485054458,-500.0,0.00011819,2]
[347053795,1735485054467,-1247.95,0.00011819,2]
[347053797,1735485054476,-500.0,0.00011819,2]
[347053799,1735485054485,-500.0,0.00011819,2]
[347053801,1735485054494,-476.25899196,0.00011819,2]
[347053803,1735485054503,-500.0,0.00011819,2]
[347053805,1735485054512,-500.0,0.00011819,2]
[347053807,1735485054521,-523.32,0.00011819,2]
[347053809,1735485054530,-500.0,0.00011819,2]
[347053811,1735485054540,-500.0,0.00011819,2]
[347053813,1735485054549,-500.0,0.00011819,2]
[347053815,1735485054558,-500.0,0.00011819,2]
[347053817,1735485054567,-1430.8,0.00011819,2]
[347053819,1735485054576,-972.6,0.00011819,2]
[347053821,1735485054585,-500.0,0.00011819,2]
[347053823,1735485054595,-500.0,0.00011819,2]
[347053825,1735485054604,-500.0,0.00011819,2]
[347053827,1735485054614,-500.0,0.00011819,2]
[347053829,1735485054623,-399.27832504,0.00011819,2]
[347053831,1735485054632,-500.0,0.00011819,2]
[347053833,1735485054642,-500.0,0.00011819,2]
[347053835,1735485054651,-500.0,0.00011819,2]
[347053837,1735485054660,-500.0,0.00011819,2]
[347053839,1735485054669,-789.68,0.00011819,2]
[347053841,1735485054679,-500.0,0.00011819,2]
[347053843,1735485054688,-922.79,0.00011819,2]
[347053845,1735485054697,-500.0,0.00011819,2]
[347053847,1735485054707,-500.0,0.00011819,2]
[347053849,1735485054716,-764.51,0.00011819,2]
[347053851,1735485054725,-500.0,0.00011819,2]
[347053853,1735485054735,-500.0,0.00011819,2]
[347053855,1735485054744,-500.0,0.00011819,2]
[347053857,1735485054754,-661.95,0.00011819,2]
[347053859,1735485054763,-500.0,0.00011819,2]
[347053861,1735485054772,-500.0,0.00011819,2]
[347053863,1735485054781,-199.018152,0.00011819,2]
[347053865,1735485054792,-500.0,0.00011819,2]
[347053867,1735485054803,-500.0,0.00011819,2]
[347053869,1735485054812,-524.91477206,0.00011819,2]
[347053871,1735485054821,-500.0,0.00011819,2]
[347053873,1735485054831,-737.52,0.00011819,2]
[347053875,1735485054843,-500.0,0.00011819,2]
[347053877,1735485054852,-500.0,0.00011819,2]
[347053879,1735485054861,-500.0,0.00011819,2]
[347053880,1735485054871,-500.0,0.00011819,2]
[347053882,1735485054882,-500.0,0.00011819,2]
[347053884,1735485054892,-1140.28,0.00011819,2]
[347053887,1735485054901,-500.0,0.00011819,2]
[347053888,1735485054910,-500.0,0.00011819,2]
[347053890,1735485054919,-507.64,0.00011819,2]
[347053892,1735485054928,-500.0,0.00011819,2]
[347053894,1735485054938,-500.0,0.00011819,2]
[347053897,1735485054947,-500.0,0.00011819,2]
[347053898,1735485054958,-531.87,0.00011819,2]
[347053900,1735485054967,-1001.49,0.00011819,2]
[347053902,1735485054977,-472.46732669,0.00011819,2]
[347053904,1735485054986,-500.0,0.00011819,2]
[347053906,1735485054995,-500.0,0.00011819,2]
[347053908,1735485055004,-180.38650903,0.00011819,2]
[347053910,1735485055013,-2501.13,0.00011819,2]
[347053911,1735485055022,-500.0,0.00011819,2]
[347053912,1735485055030,-670.74,0.00011819,2]
[347053913,1735485055039,-500.0,0.00011819,2]
[347053914,1735485055048,-500.0,0.00011819,2]
[347053915,1735485055057,-429.3026671,0.00011819,2]
[347053916,1735485055066,-500.0,0.00011819,2]
[347053917,1735485055075,-500.0,0.00011819,2]
[347053919,1735485055084,-1714.32,0.00011819,2]
[347053920,1735485055093,-500.0,0.00011819,2]
[347053922,1735485055103,-500.0,0.00011819,2]
[347053924,1735485055112,-500.0,0.00011819,2]
[347053927,1735485055122,-1131.48,0.00011819,2]
[347053929,1735485055132,-500.0,0.00011819,2]
[347053931,1735485055141,-500.0,0.00011819,2]
[347053933,1735485055150,-500.0,0.00011819,2]
[347053935,1735485055160,-500.0,0.00011819,2]
[347053937,1735485055170,-500.0,0.00011819,2]
[347053939,1735485055180,-1631.02,0.00011819,2]
[347053941,1735485055189,-500.0,0.00011819,2]
[347053942,1735485055199,-500.0,0.00011819,2]
[347053945,1735485055208,-500.0,0.00011819,2]
[347053967,1735485055382,-500.0,0.00011819,2]
[347053969,1735485055416,-500.0,0.00011819,2]
[347053971,1735485055426,-500.0,0.00011819,2]
[347053973,1735485055435,-1185.25,0.00011819,2]
[347053975,1735485055445,-500.0,0.00011819,2]
[347053977,1735485055456,-500.0,0.00011819,2]
[347053980,1735485055466,-500.0,0.00011819,2]
[347053982,1735485055475,-1612.97,0.00011819,2]
[347053984,1735485055484,-500.0,0.00011819,2]
[347053986,1735485055493,-500.0,0.00011819,2]
[347053988,1735485055503,-500.0,0.00011819,2]
[347053990,1735485055512,-1121.02,0.00011819,2]
[347053992,1735485055521,-543.43,0.00011819,2]
[347053994,1735485055530,-500.0,0.00011819,2]
[347053996,1735485055539,-500.0,0.00011819,2]
[347053997,1735485055549,-500.0,0.00011819,2]
[347053999,1735485055558,-2316.15,0.00011819,2]
[347054002,1735485055568,-342.70925485,0.00011819,2]
[347054004,1735485055578,-500.0,0.00011819,2]
[347054006,1735485055587,-500.0,0.00011819,2]
[347054008,1735485055596,-500.0,0.00011819,2]
[347054009,1735485055605,-500.0,0.00011819,2]
[347054011,1735485055614,-500.0,0.00011819,2]
[347054014,1735485055623,-1012.67,0.00011819,2]
[347054016,1735485055633,-500.0,0.00011819,2]
[347054018,1735485055642,-500.0,0.00011819,2]
[347054019,1735485055651,-500.0,0.00011819,2]
[347054021,1735485055661,-500.0,0.00011819,2]
[347054024,1735485055670,-1221.53,0.00011819,2]
[347054026,1735485055679,-500.0,0.00011819,2]
[347054028,1735485055690,-198.58884789,0.00011819,2]
[347054029,1735485055699,-500.0,0.00011819,2]
[347054031,1735485055709,-500.0,0.00011819,2]
[347054033,1735485055718,-1921.05,0.00011819,2]
[347054036,1735485055728,-500.0,0.00011819,2]
[347054038,1735485055737,-500.0,0.00011819,2]
[347054040,1735485055747,-500.0,0.00011819,2]
[347054042,1735485055756,-500.0,0.00011819,2]
[347054044,1735485055765,-500.0,0.00011819,2]
[347054046,1735485055775,-649.28,0.00011819,2]
[347054048,1735485055784,-998.02,0.00011819,2]
[347054049,1735485055794,-1522.63,0.00011819,2]
[347054052,1735485055806,-757.18,0.00011819,2]
[347054054,1735485055816,-500.0,0.00011819,2]
[347054056,1735485055825,-1569.03,0.00011819,2]
[347054058,1735485055834,-500.0,0.00011819,2]
[347054060,1735485055845,-2328.5,0.00011819,2]
[347054062,1735485055855,-981.69,0.00011819,2]
[347054064,1735485055864,-500.0,0.00011819,2]
[347054066,1735485055874,-1064.21,0.00011819,2]
[347054068,1735485055883,-590.1420653,0.00011819,2]
[347054070,1735485055893,-500.0,0.00011819,2]
[347054072,1735485055902,-500.0,0.00011819,2]
[347054074,1735485055911,-500.0,0.00011819,2]
[347054076,1735485055920,-1693.37,0.00011819,2]
[347054078,1735485055930,-500.0,0.00011819,2]
[347054080,1735485055939,-500.0,0.00011819,2]
[347054082,1735485055949,-1293.55,0.00011819,2]
[347054084,1735485055959,-873.94,0.00011819,2]
[347054086,1735485055968,-847.4,0.00011819,2]
[347054088,1735485055978,-500.0,0.00011819,2]
[347054090,1735485055987,-1021.65,0.00011819,2]
[347054092,1735485055997,-500.0,0.00011819,2]
[347054094,1735485056006,-2267.79,0.00011819,2]
[347054096,1735485056016,-500.0,0.00011819,2]
[347054098,1735485056026,-1022.3,0.00011819,2]
[347054100,1735485056035,-500.0,0.00011819,2]
[347054102,1735485056046,-500.0,0.00011819,2]
[347054104,1735485056055,-447.91010373,0.00011819,2]
[347054106,1735485056065,-1309.43,0.00011819,2]
[347054108,1735485056075,-500.0,0.00011819,2]
[347054110,1735485056085,-500.0,0.00011819,2]
[347054112,1735485056094,-500.0,0.00011819,2]
[347054114,1735485056104,-500.0,0.00011819,2]
[347054116,1735485056114,-2257.2,0.00011819,2]
[347054118,1735485056123,-1340.61,0.00011819,2]
[347054120,1735485056132,-500.0,0.00011819,2]
[347054122,1735485056142,-980.43,0.00011819,2]
[347054124,1735485056151,-500.0,0.00011819,2]
[347054126,1735485056161,-500.0,0.00011819,2]
[347054128,1735485056171,-642.56,0.00011819,2]
[347054130,1735485056180,-868.37,0.00011819,2]
[347054132,1735485056190,-500.0,0.00011819,2]
[347054134,1735485056200,-500.0,0.00011819,2]
[347054136,1735485056209,-500.0,0.00011819,2]
[347054138,1735485056219,-500.0,0.00011819,2]
[347054141,1735485056229,-1298.36,0.00011819,2]
[347054143,1735485056239,-500.0,0.00011819,7]
[347054144,1735485056248,-500.0,0.00011819,2]
[347054146,1735485056258,-768.98,0.00011819,2]
[347054148,1735485056268,-500.0,0.00011819,2]
[347054151,1735485056278,-505.27518466,0.00011819,2]
[347054153,1735485056287,-784.04,0.00011819,2]
[347054154,1735485056296,-500.0,0.00011819,2]
[347054156,1735485056306,-1120.98,0.00011819,2]
[347054158,1735485056315,-522.02738445,0.00011819,2]
[347054160,1735485056325,-500.0,0.00011819,2]
[347054162,1735485056334,-789.42,0.00011819,2]
[347054164,1735485056344,-500.0,0.00011819,2]
[347054166,1735485056353,-1151.33,0.00011819,2]
[347054168,1735485056363,-873.97,0.00011819,2]
[347054170,1735485056372,-617.09,0.00011819,2]
[347054172,1735485056381,-1658.79,0.00011819,2]
[347054174,1735485056391,-1176.22,0.00011819,2]
[347054176,1735485056400,-500.0,0.00011819,2]
[347054178,1735485056411,-500.0,0.00011819,2]
[347054181,1735485056420,-1826.69,0.00011819,2]
[347054182,1735485056429,-646.27,0.00011819,2]
[347054184,1735485056439,-7165.97,0.00011819,2]
[347054186,1735485056449,-500.0,0.00011819,2]
[347054188,1735485056459,-500.0,0.00011819,2]
[347054190,1735485056468,-500.0,0.00011819,2]
[347054192,1735485056478,-500.0,0.00011819,2]
[347054194,1735485056489,-500.0,0.00011819,2]
[347054196,1735485056499,-1798.41,0.00011819,2]
[347054198,1735485056510,-500.0,0.00011819,2]
[347054200,1735485056520,-500.0,0.00011819,2]
[347054202,1735485056530,-500.0,0.00011819,2]
[347054204,1735485056540,-1874.68,0.00011819,2]
[347054206,1735485056550,-563.94,0.00011819,2]
[347054209,1735485056560,-500.0,0.00011819,2]
[347054211,1735485056570,-500.0,0.00011819,2]
[347054213,1735485056579,-500.0,0.00011819,2]
[347054215,1735485056589,-1331.6,0.00011819,2]
[347054217,1735485056598,-500.0,0.00011819,2]
[347054219,1735485056608,-1872.33,0.00011819,2]
[347054220,1735485056617,-4046.38,0.00011819,2]
[347054223,1735485056626,-509.1,0.00011819,2]
[347054224,1735485056636,-1128.98,0.00011819,2]
[347054226,1735485056645,-1060.89,0.00011819,2]
[347054228,1735485056655,-500.0,0.00011819,2]
[347054230,1735485056664,-1231.75,0.00011819,2]
[347054231,1735485056673,-4118.36,0.00011819,2]
[347054232,1735485056682,-508.42659774,0.00011819,2]
[347054233,1735485056691,-500.0,0.00011819,2]
[347054234,1735485056703,-500.0,0.00011819,2]
[347054235,1735485056714,-502.4611189,0.00011819,2]
[347054236,1735485056723,-1943.66,0.00011819,2]
[347054237,1735485056732,-500.0,0.00011819,2]
[347054239,1735485056741,-1110.06,0.00011819,2]
[347054241,1735485056751,-500.0,0.00011819,2]
[347054243,1735485056762,-1059.19,0.00011819,2]
[347054245,1735485056771,-697.71,0.00011819,2]
[347054247,1735485056781,-500.0,0.00011819,2]
[347054249,1735485056792,-863.23,0.00011819,2]
[347054251,1735485056803,-960.82,0.00011819,2]
[347054253,1735485056812,-500.0,0.00011819,2]
[347054255,1735485056822,-500.0,0.00011819,2]
[347054257,1735485056832,-555.66,0.00011819,2]
[347054259,1735485056843,-500.0,0.00011819,2]
[347054261,1735485056853,-500.0,0.00011819,2]
[347054263,1735485056863,-1103.3,0.00011819,2]
[347054265,1735485056876,-500.0,0.00011819,2]
[347054267,1735485056886,-500.0,0.00011819,2]
[347054269,1735485056895,-1307.55,0.00011819,2]
[347054271,1735485056904,-360.58311549,0.00011819,2]
[347054273,1735485056914,-500.0,0.00011819,2]
[347054275,1735485056924,-1018.53,0.00011819,2]
[347054277,1735485056933,-1533.05,0.00011819,2]
[347054279,1735485056943,-500.0,0.00011819,2]
[347054281,1735485056958,-500.0,0.00011819,2]
[347054283,1735485056967,-500.0,0.00011819,2]
[347054285,1735485056977,-834.92,0.00011819,2]
[347054287,1735485056987,-500.0,0.00011819,2]
[347054289,1735485056996,-500.0,0.00011819,2]
[347054291,1735485057006,-505.28389198,0.00011819,2]
[347054293,1735485057015,-3743.79,0.00011819,2]
[347054295,1735485057025,-574.62,0.00011819,2]
[347054297,1735485057036,-500.0,0.00011819,2]
[347054299,1735485057046,-500.0,0.00011819,2]
[347054301,1735485057057,-974.84,0.00011819,2]
[347054303,1735485057066,-979.5,0.00011819,2]
[347054305,1735485057077,-757.91,0.00011819,2]
[347054307,1735485057086,-2620.26,0.00011819,2]
[347054309,1735485057097,-2155.22,0.00011819,2]
[347054311,1735485057107,-824.51,0.00011819,2]
[347054313,1735485057116,-13717.63,0.00011819,2]
[347054315,1735485057125,-500.0,0.00011819,2]
[347054317,1735485057135,-500.0,0.00011819,2]
[347054319,1735485057145,-500.0,0.00011819,2]
[347054321,1735485057154,-500.0,0.00011819,2]
[347054323,1735485057163,-1939.1,0.00011819,2]
[347054325,1735485057173,-500.0,0.00011819,2]
[347054327,1735485057182,-538.63,0.00011819,2]
[347054329,1735485057191,-4614.82,0.00011819,2]
[347054331,1735485057205,-500.0,0.00011819,2]
[347054333,1735485057215,-500.0,0.00011819,2]
[347054335,1735485057224,-629.59,0.00011819,2]
[347054337,1735485057234,-16021.18,0.00011819,2]
[347054339,1735485057243,-778.1,0.00011819,2]
[347054341,1735485057252,-500.0,0.00011819,2]
[347054343,1735485057263,-6832.87,0.00011819,2]
[347054345,1735485057272,-1060.33,0.00011819,2]
[347054347,1735485057281,-858.38,0.00011819,2]
[347054349,1735485057291,-832.9,0.00011819,2]
[347054351,1735485057300,-615.83,0.00011819,2]
[347054353,1735485057310,-826.78,0.00011819,2]
[347054355,1735485057320,-500.0,0.00011819,2]
[347054357,1735485057329,-614.97,0.00011819,2]
[347054359,1735485057338,-500.0,0.00011819,2]
[347054361,1735485057348,-4006.87,0.00011819,2]
[347054363,1735485057357,-1219.58,0.00011819,2]
[347054365,1735485057367,-500.0,0.00011819,2]
[347054367,1735485057376,-11903.91,0.00011819,2]
[347054369,1735485057385,-792.81,0.00011819,2]
[347054371,1735485057394,-2062.96,0.0001182,2]
[347054373,1735485057404,-2524.42,0.0001182,2]
[347054375,1735485057414,-608.31,0.0001182,2]
[347054377,1735485057423,-679.81,0.0001182,2]
[347054379,1735485057434,-500.0,0.0001182,2]
[347054381,1735485057443,-740.41,0.0001182,2]
[347054383,1735485057457,-500.0,0.0001182,2]
[347054385,1735485057467,-500.0,0.0001182,2]
[347054387,1735485057476,-1465.63,0.0001182,2]
[347054389,1735485057485,-500.0,0.0001182,2]
[347054391,1735485057494,-1087.45,0.0001182,2]
[347054393,1735485057503,-500.0,0.0001182,2]
[347054395,1735485057512,-500.0,0.0001182,2]
[347054397,1735485057521,-1844.01,0.0001182,2]
[347054399,1735485057531,-1343.45,0.0001182,2]
[347054401,1735485057539,-1136.74,0.0001182,2]
[347054403,1735485057549,-1110.11,0.0001182,2]
[347054405,1735485057558,-500.0,0.0001182,2]
[347054407,1735485057567,-1803.98,0.0001182,2]
[347054409,1735485057576,-1308.6,0.0001182,2]
[347054411,1735485057585,-1485.77,0.0001182,2]
[347054413,1735485057594,-1185.07,0.0001182,2]
[347054415,1735485057604,-552.67,0.0001182,2]
[347054417,1735485057613,-500.0,0.0001182,2]
[347054419,1735485057623,-2154.33,0.0001182,2]
[347054421,1735485057632,-779.5,0.0001182,2]
[347054423,1735485057641,-2051.05,0.0001182,2]
[347054425,1735485057651,-997.99,0.0001182,2]
[347054427,1735485057660,-500.0,0.0001182,2]
[347054429,1735485057670,-1482.18,0.0001182,2]
[347054431,1735485057679,-2280.48,0.0001182,2]
[347054433,1735485057689,-1302.93,0.0001182,2]
[347054435,1735485057703,-907.81,0.0001182,2]
[347054437,1735485057713,-1258.66,0.0001182,2]
[347054439,1735485057722,-930.71,0.0001182,2]
[347054448,1735485057793,-500.0,0.0001182,2]
[347054450,1735485057807,-2743.52,0.0001182,2]
[347054452,1735485057817,-500.0,0.0001182,2]
[347054454,1735485057827,-924.78,0.0001182,2]
[347054456,1735485057836,-2080.25823732,0.0001182,2]
[347054500,1735485058319,-467.85176268,0.0001182,2]